[Event "FIDE WTC-KO 202"]
[Site "Jerusalem"]
[Date "2022.11.23"]
[Round "2.1"]
[White "Anton Guijarro, David"]
[Black "Radjabov, Teimour"]
[Result "1-0"]
[ECO "E20"]
[WhiteElo "2633"]
[BlackElo "2718"]
[Annotator "TA"]
[PlyCount "135"]
[EventDate "2022.11.20"]
[EventType "team-tourn"]
[EventCountry "ISR"]
[SourceTitle "playchess.com"]
[Source "ChessBase"]
[SourceQuality "1"]
[TimeControl "2700+10"]

{[%evp 12,135,14,-7,14,9,27,0,-7,0,69,89,86,60,75,78,79,69,66,56,68,68,72,75,71,60,58,53,61,57,53,52,103,89,95,73,77,83,86,100,107,100,106,91,120,116,132,120,116,96,106,89,116,0,106,86,87,0,0,0,110,107,105,111,119,122,107,0,0,0,0,0,0,0,0,0,0,0,9,0,48,38,47,19,18,15,45,58,85,82,82,7,8,9,8,8,18,16,74,74,136,150,795,802,795,683,850,364,850,850,850,850,850,843,835,835,2528,850,835,608,474,335,835,835,416,409]} 1. d4 {[%emt 0:00:04]} Nf6 {[%emt 0:00:01]} 2. c4 {[%emt 0:00:04]} e6 {[%emt 0:00:02]} 3. Nc3 {[%emt 0:00:14]} Bb4 {[%emt 0:00:04]} 4. f3 {[%emt 0:00:07]} c5 {[%emt 0:00:09]} 5. d5 {[%emt 0:00:05]} O-O {[%emt 0:00:09]} 6. e4 {[%emt 0:00:19]} d6 {[%emt 0:00:02]} 7. Nge2 {[%emt 0:00:34]} Re8 {[%emt 0:00:01] E20: Nimzo-Indian: 4 g3 and 4 f3.} (7... b5 $5 {[%cal Rb5c4]}) 8. Ng3 {[%emt 0:05:24]} b5 {[%emt 0:01:42]} 9. Be2 {[%emt 0:07:15]} (9. cxb5 exd5 10. Be2 d4 $15) (9. Bf4 {is interesting.} Qb6 10. Kf2 bxc4 11. Bxc4 Ba6 12. Na4) 9... bxc4 {[%emt 0:01:50] The position is equal.} 10. Bxc4 {[%emt 0:00:06] [#]} e5 $146 {[%emt 0:23:33]} (10... Ba6 $11 11. Bxa6 Nxa6) ({Predecessor:} 10... Ba6 11. Bxa6 Nxa6 12. O-O c4 13. Kh1 Nc5 14. Bg5 h6 15. Bxf6 Qxf6 16. Nb5 Red8 {0-1 (69) Toth,E (2477)-Berkes,F (2677) Gyula 2013}) 11. O-O $14 {[%emt 0:01:29]} Nbd7 {[%emt 0:00:02][%cal Bb8d7,Bd7f8,Bf8g6,Bg6f4][%mdl 32]} 12. Be3 {[%emt 0:03:14]} Nf8 {[%emt 0:01:15]} 13. Qc2 {[%emt 0:02:44]} Ng6 {[%emt 0:00:10]} 14. a3 {[%emt 0:01:09]} Ba5 {[%emt 0:00:03]} 15. Rab1 {[%emt 0:00:56]} Nf4 {[%emt 0:01:29]} 16. Nge2 {[%emt 0:02:49]} (16. Nce2 {simplifies} Nxe2+ 17. Nxe2 Rb8 18. Ng3) 16... N6h5 {[%emt 0:00:02]} 17. Kh1 {[%emt 0:02:14]} g6 {[%emt 0:02:13]} 18. g4 {[%emt 0:02:01] Prevents f5.} (18. Bb5 {looks sharper.} Bd7 19. Bc6 Rc8 20. b4) 18... Nxe2 {[%emt 0:01:30]} 19. Nxe2 {[%emt 0:00:07]} Ng7 {[%emt 0:00:03]} 20. Ng3 {[%emt 0:00:22]} Bd7 {[%emt 0:00:18]} 21. Qf2 {[%emt 0:01:41]} f6 {[%emt 0:04:58]} (21... Rf8 $14) 22. Bh6 {[%emt 0:04:31]} Qe7 {[%emt 0:02:26]} 23. Qe2 {[%emt 0:02:12]} Rab8 {[%emt 0:00:50]} 24. Rbc1 {[%emt 0:00:23]} Rf8 {[%emt 0:03:27]} 25. f4 {[%emt 0:02:13]} exf4 {[%emt 0:00:17]} 26. Rxf4 {[%emt 0:00:25]} (26. Bxf4 Rb7 $14) 26... Qe5 {[%emt 0:00:23]} 27. Rf2 {[%emt 0:00:21]} Rf7 {[%emt 0:00:46]} 28. Rcf1 {[%emt 0:02:37]} Rbf8 {[%emt 0:00:14]} 29. Bf4 {[%emt 0:01:32]} Qe7 {[%emt 0:00:02]} 30. Kg2 {[%emt 0:00:51]} Bd8 {[%emt 0:00:56]} 31. Bh6 {[%emt 0:00:42]} Qe5 {[%emt 0:00:26]} 32. Bf4 {[%emt 0:00:22]} (32. b3 {feels hotter.} Qe7 33. Qf3 Qe5 34. Bf4) 32... Qe7 {[%emt 0:00:00]} 33. Bd2 {[%emt 0:00:17] Inhibits h5.} Qe5 {[%emt 0:00:32]} 34. Bc3 {[%emt 0:00:18]} (34. Bh6 $16) 34... Qg5 $1 $11 {[%emt 0:00:23]} 35. Rf4 {[%emt 0:00:42]} Qh6 {[%emt 0:00:27]} (35... h5 $11 {keeps the balance.}) 36. Bd2 $16 {[%emt 0:00:21][%cal Oe4e5]} g5 {[%emt 0:00:10] Inhibits e5.} 37. R4f2 {[%emt 0:00:06]} Qh4 {[%emt 0:00:06]} 38. h3 {[%emt 0:00:12]} h5 {[%emt 0:00:02][%cal Rh5g4] [#]} 39. Nf5 {[%emt 0:00:13] Active counter play!} (39. Nxh5 $2 Nxh5 40. gxh5 Bxh3+ 41. Kg1 Bxf1 42. Rxf1 Re8 $19) (39. Rh1 $1 $16) 39... Nxf5 $11 {[%emt 0:00:06]} 40. exf5 {[%emt 0:00:16]} Re8 {[%emt 0:00:16]} 41. Qf3 {[%emt 0:00:03]} hxg4 {[%emt 0:00:20]} 42. hxg4 {[%emt 0:00:13] Threatens to win with Rh1.} Rh7 {[%emt 0:00:09][%csl Gh7][%cal Rh4h2] [#]} 43. Qg3 {[%emt 0:00:11] Prevents Qh2+.} Re4 {[%emt 0:00:06]} 44. Be2 {[%emt 0:00:02]} Bb6 $132 {[%emt 0:00:18][%mdl 2048] Black has counterplay} 45. Bf3 {[%emt 0:00:06]} Re8 {[%emt 0:00:09]} (45... Ree7 $11 {was preferrable.}) 46. Qxh4 $14 {[%emt 0:00:06]} Rxh4 {[%emt 0:00:01]} 47. Re1 {[%emt 0:00:15]} Rxe1 {[%emt 0:00:17]} 48. Bxe1 {[%emt 0:00:01]} Rh7 {[%emt 0:00:03]} 49. Re2 {[%emt 0:00:12]} a5 {[%emt 0:00:19]} 50. Bg3 {[%emt 0:00:14]} Bc7 {[%emt 0:00:01]} 51. b4 {[%emt 0:00:17]} (51. b3 $16) 51... axb4 $11 {[%emt 0:00:09]} ({But not} 51... cxb4 52. axb4 axb4 53. Re4 $14 (53. Rb2 Re7 $14)) 52. axb4 {[%emt 0:00:02]} cxb4 {[%emt 0:00:02]} 53. Rb2 {[%emt 0:00:06]} Kf7 {[%emt 0:00:25]} 54. Rxb4 {[%emt 0:00:02]} Ke7 {[%emt 0:00:08]} (54... Kg8 $11) 55. Rb7 $16 {[%emt 0:00:13]} Ba5 {[%emt 0:00:16]} (55... Kd8 $142) 56. Be2 {[%emt 0:00:17]} Bc3 $2 {[%emt 0:00:10] Black cannot hold the game after this.} (56... Kd8 $16) 57. Bb5 $18 {[%emt 0:00:07]} Kd8 {[%emt 0:00:05]} 58. Bxd6 {[%emt 0:00:11] Black must now prevent Bxd7.} Bxf5 {[%emt 0:00:16]} 59. Rb8+ {[%emt 0:00:15]} Bc8 {[%emt 0:00:01]} 60. Ba6 {[%emt 0:00:11] Prevents Rb7.} Kd7 {[%emt 0:00:18]} 61. Rxc8 {[%emt 0:00:05] Threatening mate with Rc6.} ({Worse is} 61. Bxc8+ Kxd6 62. Be6 Ke5 $11) 61... Kxd6 {[%emt 0:00:03]} 62. Rxc3 {[%emt 0:00:02] And now Rc6+ would win.} Kxd5 {[%emt 0:00:05][%mdl 4096] Endgame KRB-KR} 63. Rf3 {[%emt 0:00:20]} Ke6 {[%emt 0:00:22]} 64. Bc4+ {[%emt 0:00:11]} (64. Bc8+ $142 Ke7 65. Rd3) 64... Ke5 {[%emt 0:00:09]} 65. Bd3 {[%emt 0:00:27]} Rc7 {[%emt 0:00:10]} 66. Bf5 {[%emt 0:00:06]} Rc6 $2 {[%emt 0:00:10]} (66... Ra7 67. Re3+ Kd4 68. Re4+ Kd5) 67. Re3+ {[%emt 0:00:05]} Kd4 {[%emt 0:00:09]} 68. Re6 {[%emt 0:00:16] Weighted Error Value: White=0.15 (very precise) /Black=0.17 (very precise)} 1-0

[Event "FIDE WTC-KO 202"]
[Site "Jerusalem"]
[Date "2022.11.23"]
[Round "2.1"]
[White "Guseinov, Gadir"]
[Black "Shirov, Alexei"]
[Result "1-0"]
[ECO "B30"]
[WhiteElo "2616"]
[BlackElo "2590"]
[Annotator "TA"]
[PlyCount "103"]
[EventDate "2022.11.20"]
[EventType "team-tourn"]
[EventCountry "ISR"]
[SourceTitle "playchess.com"]
[Source "ChessBase"]
[SourceQuality "1"]
[TimeControl "2700+10"]

{[%evp 14,103,23,16,16,10,9,5,0,0,13,11,72,77,81,73,77,70,89,89,89,91,99,95,124,106,134,157,143,103,179,179,147,179,185,184,197,198,173,176,188,182,272,181,192,186,172,135,130,134,197,186,247,241,213,147,344,335,331,338,316,316,415,406,391,374,552,530,592,567,601,531,673,406,395,282,261,216,326,223,688,684,6165,6123,5531,4952,2059,1080,852,623,1543,1233]} 1. e4 {[%emt 0:00:04]} c5 {[%emt 0:00:01]} 2. Nf3 {[%emt 0:00:04]} Nc6 {[%emt 0:00:03]} 3. Nc3 {[%emt 0:00:05]} e5 {[%emt 0:00:03]} 4. Bc4 {[%emt 0:00:05]} Be7 {[%emt 0:00:05]} 5. d3 {[%emt 0:01:06]} d6 {[%emt 0:00:02]} 6. O-O {[%emt 0:02:04]} Nf6 {[%emt 0:00:03]} 7. Ng5 {[%emt 0:02:13]} O-O {[%emt 0:00:04]} 8. f4 {[%emt 0:00:01]} (8. h3 {simplifies} h6 9. Nf3 a6 10. a4) 8... Bg4 {[%emt 0:00:02] B30: Sicilian: 2...Nc6 3 Bb5, lines without ...g6.} 9. Qe1 {[%emt 0:00:01]} exf4 {[%emt 0:00:03]} 10. Bxf4 {[%emt 0:00:01]} (10. Rxf4 h6 11. Nf3 g5 12. Rxg4 Nxg4 $15) 10... Nd4 {[%emt 0:00:02] The position is equal.} 11. Qf2 {[%emt 0:00:45]} Be6 {[%emt 0:04:04] [#]} 12. Nf3 $146 {[%emt 0:06:17]} ({Predecessor:} 12. Bb3 Bxb3 13. axb3 Ng4 14. Qh4 h6 15. Qxg4 Bxg5 16. Bxg5 Qxg5 17. Qxg5 hxg5 18. Rf2 {1-0 (38) Firouzja,A (2728)-Praggnanandhaa,R (2608) Chess.com INT 2020}) 12... Bxc4 {[%emt 0:07:14]} (12... Nxe4 $11 13. Nxe4 d5) 13. dxc4 $16 {[%emt 0:00:16]} Ne6 {[%emt 0:00:02]} 14. Bg3 {[%emt 0:03:27] White is more active.} Ng4 {[%emt 0:03:41]} 15. Qd2 {[%emt 0:08:34]} Bf6 {[%emt 0:02:25]} 16. Rad1 {[%emt 0:00:12]} Ne5 {[%emt 0:04:04]} 17. b3 {[%emt 0:01:19]} (17. Qxd6 Qxd6 18. Rxd6 Nxc4 $15) 17... Nxf3+ {[%emt 0:00:29]} 18. gxf3 {[%emt 0:02:55]} Bd4+ {[%emt 0:05:18]} 19. Kg2 {[%emt 0:00:46]} f5 {[%emt 0:07:10]} 20. exf5 $1 {[%emt 0:00:00]} Rxf5 {[%emt 0:00:03]} 21. Nd5 {[%emt 0:00:01]} Qd7 {[%emt 0:02:51]} (21... Rf7 $16 {was necessary.}) 22. c3 $18 {[%emt 0:01:11]} Be5 {[%emt 0:00:03]} 23. f4 {[%emt 0:02:34]} Bf6 {[%emt 0:00:02]} 24. Ne3 {[%emt 0:02:09]} Qc6+ {[%emt 0:00:25]} 25. Kg1 {[%emt 0:00:10]} Rh5 {[%emt 0:00:19]} 26. Qe2 {[%emt 0:00:37]} (26. Qxd6 Bxc3 27. f5 Ng5 $11) 26... Qe8 {[%emt 0:01:34]} 27. Nd5 $36 {[%emt 0:00:49][%mdl 2048] Black is under strong pressure.} Nf8 {[%emt 0:01:56]} (27... Rh6 $142 28. Qg4 Qd7) 28. Qxe8 {[%emt 0:02:21]} Rxe8 {[%emt 0:00:01]} 29. Nxf6+ {[%emt 0:00:01]} gxf6 {[%emt 0:00:02]} 30. f5 {[%emt 0:00:57]} Rg5 {[%emt 0:01:52]} 31. Rxd6 {[%emt 0:00:04]} Kf7 {[%emt 0:00:01] [#]} (31... h5 $16) 32. Rd5 $1 {[%emt 0:00:24]} b6 {[%emt 0:00:08]} (32... Re7 {keeps fighting.} 33. Rxc5 Nd7) 33. Kf2 {[%emt 0:00:23]} h5 {[%emt 0:03:55]} 34. Re1 {[%emt 0:01:50]} h4 $2 {[%emt 0:00:59] Black cannot hold the game after this.} (34... Rxe1 $16 35. Kxe1 Ke8) 35. Bxh4 {[%emt 0:00:22]} Rxe1 {[%emt 0:00:02]} 36. Kxe1 {[%emt 0:00:12][%mdl 4096] Endgame KRB-KRN} Rg1+ {[%emt 0:00:06]} 37. Kf2 {[%emt 0:02:02]} Rc1 {[%emt 0:00:04]} 38. Rd6 {[%emt 0:00:18]} Rc2+ {[%emt 0:00:38]} 39. Kg3 {[%emt 0:00:02]} Rxa2 {[%emt 0:00:10]} (39... Rxc3+ {is a better defense.} 40. Kg4 Rc2 41. Rxf6+ (41. Bxf6 Rxh2 42. a4 Rg2+ 43. Kf3 Rg1 $18) 41... Kg8) 40. Rxf6+ {[%emt 0:00:05]} Ke8 {[%emt 0:00:01]} 41. Rc6 {[%emt 0:00:48]} Kd7 {[%emt 0:00:55] [#] Against Rc8} 42. Rh6 {[%emt 0:00:02]} Ra3 {[%emt 0:00:41]} 43. Bf6 {[%emt 0:00:03] Threatens to win with Rh8.} Ke8 {[%emt 0:00:08]} 44. Be5 {[%emt 0:00:35] Hoping for Bd6.} Rxb3 {[%emt 0:00:10]} 45. Rh8 {[%emt 0:01:25]} Kf7 {[%emt 0:00:06] Against Bg7} (45... Ke7 $142 46. h4 Nd7 47. Rh7+ Ke8) 46. h4 {[%emt 0:00:07][%cal Bh2h4,Bh4h5,Bh5h6][%mdl 32] h5 is the strong threat.} a5 $2 {[%emt 0:00:03]} (46... Nd7) 47. h5 {[%emt 0:00:02] aiming for h6. White is clearly winning.} a4 {[%emt 0:00:26]} 48. h6 {[%emt 0:00:21]} Rb1 {[%emt 0:00:02]} 49. Kg2 {[%emt 0:01:56]} ({Weaker is} 49. h7 Rh1 50. Bd6 (50. Rxf8+ $2 Kxf8 51. h8=Q+ Rxh8 $19) 50... Nxh7 $11) 49... Rb2+ {[%emt 0:00:02]} 50. Kf3 {[%emt 0:00:07] Threatening mate with h7.} Rb1 {[%emt 0:00:05]} 51. Bg7 {[%emt 0:00:38]} ({Worse is} 51. h7 Rh1 52. Bd6 (52. Rxf8+ $2 Kxf8 53. h8=Q+ Rxh8 $19) 52... Nxh7 $11) 51... Nd7 {[%emt 0:00:08]} 52. Rd8 {[%emt 0:00:03] Weighted Error Value: White=0.27 (precise) /Black=0.47} 1-0

[Event "FIDE WTC-KO 202"]
[Site "Jerusalem"]
[Date "2022.11.23"]
[Round "2.1"]
[White "Narayanan, S.L."]
[Black "Fressinet, Laurent"]
[Result "0-1"]
[ECO "C50"]
[WhiteElo "2588"]
[BlackElo "2684"]
[Annotator "TA"]
[PlyCount "86"]
[EventDate "2022.11.20"]
[EventType "team-tourn"]
[EventCountry "ISR"]
[SourceTitle "playchess.com"]
[Source "ChessBase"]
[SourceQuality "1"]
[TimeControl "2700+10"]

{[%evp 9,86,14,18,9,8,4,14,16,36,10,18,8,18,0,16,-26,0,0,0,-19,-29,-14,109,-17,-6,-58,-60,-85,-88,-75,-79,-100,-84,-121,-113,-237,-239,-230,-235,-334,-341,-307,-318,-510,-515,-537,-529,-443,-533,-568,-417,-363,-304,-492,-478,-502,-417,-592,-472,-475,-467,-706,-664,-1033,-1029,-1004,-987,-5229,-5215,-2941,-2521,-1929,-1002,-29966,-596,-29968,-29970,-12831,-5485]} 1. e4 {[%emt 0:00:03]} e5 {[%emt 0:00:07]} 2. Nf3 {[%emt 0:00:03]} Nc6 {[%emt 0:00:03]} 3. Bc4 {[%emt 0:00:02]} Nf6 {[%emt 0:00:07]} 4. d3 {[%emt 0:00:03]} Bc5 {[%emt 0:00:03]} 5. a4 {[%emt 0:00:02]} d6 {[%emt 0:01:07]} 6. a5 {[%emt 0:00:26] C50: Hungarian Defence and Giuoco Pianissimo.} a6 {[%emt 0:01:04]} 7. O-O {[%emt 0:01:03]} Ba7 {[%emt 0:01:46]} 8. c3 {[%emt 0:03:56] The position is equal.} Ne7 $5 {[%emt 0:01:26][%mdl 4] An interesting side line.} 9. Re1 {[%emt 0:01:10]} O-O {[%emt 0:00:55]} 10. Nbd2 {[%emt 0:00:29]} (10. Bg5 {seems wilder.} Ng6 11. Nh4 Kh8 12. Nd2) 10... Ng6 {[%emt 0:01:42]} 11. d4 {[%emt 0:01:13]} c6 {[%emt 0:00:32] [#]} 12. Bb3 $146 {[%emt 0:03:13]} ({Predecessor:} 12. h3 h6 13. Bf1 Re8 14. Qc2 Qc7 15. dxe5 dxe5 16. Nc4 Be6 17. b3 Bc5 18. Nb2 {1-0 (50) Boschetti,C (2140)-Krebs,S (1919) Stein am Rhein 2016}) 12... exd4 {[%emt 0:03:52]} (12... Bg4 $5) 13. cxd4 {[%emt 0:00:16]} d5 {[%emt 0:00:02]} 14. e5 {[%emt 0:01:43]} Nh5 {[%emt 0:01:15]} 15. Bc2 {[%emt 0:08:23]} f6 {[%emt 0:03:43]} (15... Nhf4 $11) 16. Nb3 {[%emt 0:00:04]} (16. Bxg6 $16 hxg6 17. Nh4 (17. e6 Re8 $15)) 16... Nhf4 $11 {[%emt 0:01:42]} 17. Bxg6 {[%emt 0:02:46]} (17. Nh4 $11) 17... Nxg6 $15 {[%emt 0:00:08]} 18. exf6 {[%emt 0:00:09]} Qxf6 {[%emt 0:00:42] White must now prevent ...Bg4.} 19. Bg5 {[%emt 0:00:26]} Qf7 {[%emt 0:02:56]} 20. Qd2 {[%emt 0:02:57]} Bb8 {[%emt 0:01:10]} 21. Ne5 {[%emt 0:01:29] Prevents h6.} Bxe5 {[%emt 0:01:48]} 22. dxe5 {[%emt 0:00:02] This costs White the game.} (22. Rxe5 $17 Nxe5 23. dxe5) 22... h6 $19 {[%emt 0:00:02]} 23. Be3 {[%emt 0:00:07][%cal Of2f4]} Nh4 $1 {[%emt 0:03:36]} ({Not} 23... Nxe5 24. Bd4 Ng6 25. Re3 $15) 24. Qe2 {[%emt 0:04:58]} (24. Bxh6 $142 gxh6 25. Re3) 24... Qg6 {[%emt 0:02:09][%csl Gh4][%cal Rg6g2]} 25. f4 {[%emt 0:00:01] [#]} Bh3 $1 {[%emt 0:01:21][%cal Rh4g2,Bc8h3,Bh3g4,Bg4f3][%mdl 32]} 26. g3 {[%emt 0:00:48]} (26. Qf2 Qxg2+ 27. Qxg2 Nxg2 28. Re2 Nxf4 29. Bxf4 Rxf4 30. Re3) 26... Bg4 {[%emt 0:00:20]} 27. Qf2 {[%emt 0:00:44]} Nf3+ {[%emt 0:00:08]} 28. Kh1 {[%emt 0:00:01] [#]} Nxe5 $1 {[%emt 0:01:03][%mdl 512]} 29. Nc5 {[%emt 0:00:57] Against Qe4+} (29. Bd4 Nd3) 29... Bf3+ {[%emt 0:02:01]} 30. Kg1 {[%emt 0:00:01]} Be4 {[%emt 0:00:09]} 31. Red1 $2 {[%emt 0:02:51]} (31. fxe5 Rxf2 32. Bxf2) 31... Nf3+ {[%emt 0:03:12]} 32. Kf1 {[%emt 0:00:01]} Qh5 {[%emt 0:01:08]} 33. h4 {[%emt 0:02:06]} (33. Nxe4 {was the only defense.} dxe4 34. h4) 33... Rae8 {[%emt 0:00:44]} 34. Nxe4 {[%emt 0:00:18]} Rxe4 {[%emt 0:00:55]} (34... dxe4 $2 {loses.} 35. Rd7 $19) 35. Rd3 {[%emt 0:01:55] [#]} (35. Bc5 $142 Rf6 36. Rd3) 35... Ne5 $1 {[%emt 0:00:28][%mdl 512]} 36. Rb3 {[%emt 0:00:10]} (36. Rd4 Ng4) 36... Ng4 {[%emt 0:00:35]} 37. Qd2 {[%emt 0:00:02]} Rfe8 {[%emt 0:01:05]} 38. Bd4 {[%emt 0:00:02] [#]} Nh2+ $1 {[%emt 0:01:31][%mdl 512]} 39. Qxh2 {[%emt 0:00:07]} (39. Kg1 Nf3+) 39... Rxd4 {[%emt 0:00:02]} 40. Qc2 {[%emt 0:01:03] Inhibits Rd1+.} Rde4 {[%emt 0:00:17] ( -> ...Re2)} 41. Qc3 {[%emt 0:01:41]} Qe2+ {[%emt 0:00:37]} 42. Kg1 {[%emt 0:00:01]} Re3 {[%emt 0:00:09] Against Qf3} 43. Qb4 {[%emt 0:00:08]} Rxb3 {[%emt 0:00:11] Weighted Error Value: White=0.89/Black=0.31} (43... Qg4 $142 44. Rxe3 Rxe3) 0-1

[Event "FIDE WTC-KO 202"]
[Site "Jerusalem"]
[Date "2022.11.23"]
[Round "2.1"]
[White "Shevchenko, Kirill"]
[Black "Sindarov, Javokhir"]
[Result "1-0"]
[ECO "C83"]
[WhiteElo "2584"]
[BlackElo "2554"]
[Annotator "TA"]
[PlyCount "129"]
[EventDate "2022.11.20"]
[EventType "team-tourn"]
[EventCountry "ISR"]
[SourceTitle "playchess.com"]
[Source "ChessBase"]
[SourceQuality "1"]
[TimeControl "2700+10"]

{[%evp 21,129,29,25,32,39,46,41,44,30,49,48,31,42,31,29,33,36,33,33,36,28,31,27,26,33,33,29,16,16,17,16,18,31,0,0,0,0,0,0,0,55,56,54,54,57,61,50,50,93,100,83,94,152,140,133,0,133,143,344,338,337,56,88,30,53,35,242,8,269,250,213,0,15,0,8,8,8,8,8,8,8,0,8,8,8,8,8,8,8,8,8,8,8,8,29973,29974,29974,29975,29975,29975,29975,29975,29976,29977,29975,29975,29983,29979,29979,29980]} 1. e4 {[%emt 0:00:02]} e5 {[%emt 0:00:01]} 2. Nf3 {[%emt 0:00:01]} Nc6 {[%emt 0:00:01]} 3. Bb5 {[%emt 0:00:01][%cal Bf1b5,Bb5a4,Ba4b3,Bb3c2,Bc2e4][%mdl 32]} a6 {[%emt 0:00:01]} 4. Ba4 {[%emt 0:00:01]} Nf6 {[%emt 0:00:02]} 5. O-O {[%emt 0:00:04]} Nxe4 {[%emt 0:00:09]} 6. d4 {[%emt 0:00:03]} b5 {[%emt 0:00:01]} 7. Bb3 {[%emt 0:00:01]} d5 {[%emt 0:00:02]} 8. dxe5 {[%emt 0:00:00]} Be6 {[%emt 0:00:01]} 9. Nbd2 {[%emt 0:00:05]} Nc5 {[%emt 0:00:04]} 10. c3 {[%emt 0:00:09]} Be7 {[%emt 0:00:02]} 11. Bc2 {[%emt 0:00:01]} d4 {[%emt 0:00:02]} 12. Nb3 {[%emt 0:00:01][%cal Rb3d4] C83: Open Ruy Lopez: 9 c3 Be7.} dxc3 {[%emt 0:00:04] Hoping for ...Qxd1.} 13. Nxc5 {[%emt 0:00:29]} Bxc5 {[%emt 0:00:02]} 14. Be4 {[%emt 0:00:00] White is slightly better.} Qd7 {[%emt 0:00:01]} 15. Bg5 {[%emt 0:00:02] Against Rd8. aiming for Rc1.} (15. bxc3 {simplifies} Rd8 16. Qc2 Bd5 17. Bg5) 15... h6 {[%emt 0:00:33] [#]} (15... cxb2 16. Rb1 Rb8 17. Qc2 $11) 16. Qc2 {[%emt 0:00:45]} hxg5 {[%emt 0:02:29]} 17. Rad1 {[%emt 0:02:12]} Nb4 $1 {[%emt 0:00:05]} 18. Qxc3 {[%emt 0:00:01][%cal Od1d7] Really sharp!} Bxf2+ $1 {[%emt 0:00:03]} 19. Kxf2 {[%emt 0:00:01][%cal Od1d7]} Nd5 {[%emt 0:00:03]} 20. Qc5 {[%emt 0:00:05][%cal Re4d5]} c6 {[%emt 0:00:03]} 21. Nxg5 {[%emt 0:02:20]} Rh5 {[%emt 0:01:43]} 22. Nf3 {[%emt 0:01:25]} Qa7 {[%emt 0:08:14]} 23. Rc1 {[%emt 0:00:01]} Ne7 {[%emt 0:02:58]} 24. b3 {[%emt 0:10:04]} (24. Rfd1 {seems wilder.} Bxa2 25. g4 Rh3 26. Kg2) 24... Qxc5+ {[%emt 0:03:28]} 25. Rxc5 {[%emt 0:00:01] [#]} Rc8 $146 {[%emt 0:01:32]} ({Predecessor:} 25... Rd8 26. Rfc1 Bd5 27. Bxd5 Nxd5 28. g4 Rh3 29. Rxc6 Nf4 30. R1c3 Nd3+ 31. Kg2 Nf4+ {0-1 (62) Navara,D (2700)-Abdusattorov,N (2651) Belgrade 2022}) 26. Rfc1 {[%emt 0:04:37][%cal Re4c6]} Kd7 $1 {[%emt 0:00:14]} 27. Rd1+ {[%emt 0:05:33]} Kc7 $1 {[%emt 0:07:28]} 28. Rd6 {[%emt 0:02:32]} Bg4 {[%emt 0:02:37]} 29. Bxc6 {[%emt 0:04:00] Threatening mate with Be4+.} Rxe5 {[%emt 0:01:06][%mdl 64]} 30. Rdd5 {[%emt 0:00:06]} Rxd5 {[%emt 0:07:30]} (30... Re4 $1 $11 31. Bxb5+ Kb6 32. Rxc8 Bxc8) 31. Bxd5+ $14 {[%emt 0:00:02][%mdl 64] Discovered Attack} Kd6 $1 {[%emt 0:00:01]} 32. Rxc8 {[%emt 0:00:01]} Bxc8 {[%emt 0:00:05]} 33. Bxf7 {[%emt 0:00:02][%mdl 4096] Endgame KBN-KBN} Nd5 {[%emt 0:00:16]} 34. a3 {[%emt 0:05:06]} Nc3 {[%emt 0:04:00]} 35. Nd2 {[%emt 0:00:32]} Ke5 {[%emt 0:01:30]} 36. Ke3 {[%emt 0:02:19]} Bg4 {[%emt 0:01:04]} ({Black should try} 36... Bf5) 37. Nf3+ $16 {[%emt 0:04:51]} Kd6 {[%emt 0:01:53]} 38. Nd2 {[%emt 0:01:45]} Ke5 $1 {[%emt 0:00:02] Prevents Ne4.} 39. Kd3 {[%emt 0:00:08]} Nd5 {[%emt 0:00:34]} (39... Ne2 $16) 40. Bxd5 $1 $18 {[%emt 0:01:56]} Kxd5 {[%emt 0:00:01] KB-KN} 41. Nf1 $2 {[%emt 0:00:15]} (41. b4 $1 $18 {And now Ke3 would win.} Ke5 42. Ke3) 41... Be6 {[%emt 0:00:39]} 42. Ne3+ {[%emt 0:00:17]} (42. b4 $16) 42... Ke5 $11 {[%emt 0:00:02]} 43. b4 {[%emt 0:00:04]} Bg8 $2 {[%emt 0:00:05] [#]} (43... g5 $1 $14) 44. Ng4+ $2 {[%emt 0:00:13]} (44. Nd1 $1 $18) 44... Kd5 $2 {[%emt 0:00:12][%mdl 8192]} (44... Kf4 $11 45. Ne3 Ke5) 45. Nf2 $18 {[%emt 0:00:02]} Ke5 {[%emt 0:00:27]} 46. Ng4+ $2 {[%emt 0:00:01]} (46. g3 $18) 46... Kf4 {[%emt 0:00:05]} 47. Nf2 {[%emt 0:00:13]} Bd5 {[%emt 0:00:07]} 48. g3+ {[%emt 0:00:20]} Kf3 {[%emt 0:00:02]} 49. Kd4 {[%emt 0:00:02]} Bb7 {[%emt 0:00:57]} 50. Nd3 {[%emt 0:00:14] Black must now prevent Nf4.} Kg2 $1 {[%emt 0:00:02]} 51. Ke3 {[%emt 0:00:19]} Kxh2 {[%emt 0:00:07]} 52. Kf4 {[%emt 0:00:01]} g5+ {[%emt 0:00:42]} 53. Kxg5 {[%emt 0:00:13]} Kxg3 {[%emt 0:00:03]} 54. Kf6 {[%emt 0:00:16]} Kf3 {[%emt 0:00:04]} 55. Nc5 {[%emt 0:00:02]} Bc6 {[%emt 0:00:25]} 56. Ke5 {[%emt 0:00:09][%cal Oe5d6] White threatens Kd6! and mate.} Ke3 {[%emt 0:00:02]} 57. Nxa6 {[%emt 0:00:01] Strongly threatening Kd6.} Kd3 $2 {[%emt 0:00:21][%mdl 8192] [#]} (57... Be4 $11) 58. Kd6 $1 {[%emt 0:00:01] White mates.} Bf3 {[%emt 0:00:10]} 59. Kc5 {[%emt 0:00:03]} Kc3 {[%emt 0:00:12]} 60. Kxb5 {[%emt 0:00:21]} ({Weaker is} 60. Nc7 Kb3 $11) 60... Kb3 {[%emt 0:00:09]} 61. a4 {[%emt 0:00:00]} Bh5 {[%emt 0:00:11]} 62. Nc5+ {[%emt 0:00:27]} Kc3 {[%emt 0:00:01]} 63. Ne4+ {[%emt 0:00:22]} Kb3 {[%emt 0:00:10]} 64. Nd6 {[%emt 0:00:12]} Be2+ {[%emt 0:00:16]} 65. Ka5 {[%emt 0:00:01] Weighted Error Value: White=0.22 (precise) /Black=0.31} 1-0